bitfinex/quotes_ETHUSD_20251117
["timestamp","ask_amount","ask_price","bid_price","bid_amount"]
[1763412025851,0.407504,2992.1,2991.1,0.0452]
[1763412026156,0.4593,2992.0,2991.0,0.89088688]
[1763412026320,0.405504,2991.9,2991.1,0.89088688]
[1763412026529,10.25051732,2991.9,2991.0,0.89088688]
[1763412026722,10.25051732,2991.9,2990.7,0.96744233]
[1763412026723,0.4593,2991.8,2990.9,0.89088688]
[1763412026927,0.002,2992.1,2991.0,0.89088688]
[1763412027130,0.407504,2992.1,2991.1,0.93608688]
[1763412027547,0.866804,2992.1,2991.1,0.0452]
[1763412027748,0.407504,2992.1,2991.2,0.23225795]
[1763412028151,0.407504,2992.1,2991.2,1.12314483]
[1763412028352,0.002,2992.1,2991.2,1.12314483]
[1763412028628,0.405504,2991.9,2991.1,0.89088688]
[1763412028829,0.405504,2991.9,2991.1,0.93608688]
[1763412029065,0.407504,2992.1,2991.2,0.89088688]
[1763412029269,0.002,2992.1,2991.3,1.40381716]
[1763412029467,0.002,2992.1,2991.5,0.89088688]
[1763412029833,0.002,2992.1,2991.6,0.22773795]
[1763412030268,0.002,2992.1,2991.6,1.59812483]
[1763412030467,0.002,2992.1,2991.8,0.89088688]
[1763412031153,0.002,2992.1,2991.9,0.89088688]
[1763412031560,0.002,2992.1,2992.0,0.89088688]
[1763412032269,0.002,2992.1,2992.0,0.65873095]
[1763412032472,0.002,2992.1,2992.0,1.13823095]
[1763412032770,0.002,2992.1,2992.0,0.20783095]
[1763412033072,0.002,2992.1,2992.0,0.65873095]
[1763412033271,0.002,2992.1,2992.0,2.35907598]
[1763412033448,0.002,2992.1,2992.0,2.04522359]
[1763412033969,0.002,2992.1,2992.0,2.44244788]
[1763412034167,0.002,2992.1,2992.0,1.40199475]
[1763412034372,0.002,2992.1,2992.0,0.20783095]
[1763412034870,0.002,2992.1,2992.0,3.82894052]
[1763412035169,0.002,2992.1,2992.0,2.44244788]
[1763412035593,0.002,2992.1,2992.0,1.99154788]
[1763412035752,0.002,2992.1,2992.0,1.78371693]
[1763412036150,0.002,2992.1,2992.0,2.26141693]
[1763412036355,0.002,2992.1,2992.0,0.9654]
[1763412036856,0.4575,2994.5,2992.6,0.4777]
[1763412037080,0.4575,2994.2,2993.7,0.89647745]
[1763412037484,0.4575,2994.2,2993.8,0.89647745]
[1763412037789,0.4575,2994.2,2993.7,0.89703054]
[1763412037790,1.50667133,2994.2,2993.7,0.89703054]
[1763412037991,0.049,2993.7,2993.3,1.19530326]
[1763412038190,0.049,2993.7,2993.1,2.69994754]
[1763412038191,0.405504,2993.3,2993.1,1.19530326]
[1763412038552,0.4926,2993.2,2993.1,1.19530326]
[1763412038862,0.4575,2993.9,2993.0,1.7929549]
[1763412039068,0.4575,2993.9,2993.4,1.1978386]
[1763412039277,10.49171332,2994.3,2993.5,1.1978386]
[1763412039449,0.4575,2994.2,2993.5,1.1978386]
[1763412039658,0.4575,2994.2,2992.5,2.98825817]
[1763412039659,0.4926,2993.6,2993.0,1.1978386]
[1763412039980,0.405504,2993.2,2992.7,1.1978386]
[1763412040179,0.4882,2992.9,2992.5,1.1978386]
[1763412040383,0.405504,2993.0,2992.6,1.1978386]
[1763412040806,1.67105496,2994.7,2992.6,1.1978386]
[1763412040807,0.1923,2993.4,2992.7,1.1978386]
[1763412040958,0.1923,2993.4,2993.2,1.19927133]
[1763412041159,0.4575,2993.7,2993.2,1.19927133]
[1763412041355,0.4926,2993.3,2993.0,1.19927133]
[1763412041568,9.81462865,2993.5,2992.6,0.29907935]
[1763412041569,0.893704,2993.1,2992.8,2.10626397]
[1763412041773,0.0534,2993.0,2992.8,2.10626397]
[1763412042062,0.405504,2993.4,2992.9,1.19927133]
[1763412042366,7.213004,2993.4,2992.9,1.19927133]
[1763412042697,0.4575,2993.4,2993.0,1.19927133]
[1763412043366,0.1923,2993.8,2993.0,1.19927133]
[1763412043567,0.4575,2993.4,2993.2,2.10626397]
[1763412043876,0.4575,2993.4,2993.1,1.19927133]
[1763412043877,0.4926,2993.3,2993.1,1.19927133]
[1763412044066,0.405504,2993.7,2993.1,1.19927133]
[1763412044269,0.405504,2993.7,2993.2,1.19927133]
[1763412044497,0.863004,2993.7,2993.2,1.19927133]
[1763412044700,0.863004,2993.7,2993.1,1.19927133]
[1763412044903,10.27212865,2993.6,2993.0,2.10626397]
[1763412045109,0.405504,2993.4,2992.8,1.19927133]
[1763412045327,0.4926,2992.9,2992.8,1.19927133]
[1763412045491,0.4926,2992.9,2992.5,1.19927133]
[1763412045492,0.405504,2992.8,2992.5,1.19927133]
[1763412045812,0.863004,2992.8,2992.5,1.19927133]
[1763412045988,0.405504,2993.1,2992.6,1.19927133]
[1763412046191,1.06776327,2993.5,2992.6,1.19927133]
[1763412046192,0.405504,2993.6,2992.8,1.19927133]
[1763412046405,0.405504,2993.6,2993.0,2.10626397]
[1763412046709,0.4575,2993.5,2993.0,1.19927133]
[1763412046911,0.405504,2993.4,2993.0,1.19927133]
[1763412047081,0.4575,2993.3,2993.0,1.19927133]
[1763412047482,0.405504,2993.6,2993.1,1.19927133]
[1763412047919,0.4575,2993.6,2993.2,1.19927133]
[1763412048290,0.405504,2993.5,2993.2,1.19927133]
[1763412048613,0.4926,2993.3,2993.2,1.19927133]
[1763412049378,1.355604,2993.3,2993.2,1.19927133]
[1763412049581,0.9501,2993.3,2992.9,2.10626397]
[1763412049808,0.9501,2993.3,2993.0,1.19927133]
[1763412050116,0.405504,2993.7,2993.1,1.19927133]
[1763412050618,0.405504,2993.7,2993.2,1.19927133]
[1763412050923,0.405504,2993.7,2993.3,1.19927133]
[1763412051503,0.863004,2993.7,2993.3,1.19927133]
[1763412051814,0.4926,2993.4,2993.3,1.19927133]
[1763412052020,0.4926,2993.4,2993.2,1.19927133]
[1763412052515,0.4926,2993.3,2993.2,1.19927133]
[1763412052923,0.863004,2993.7,2993.2,1.19927133]
[1763412053380,0.6467,2994.3,2993.4,1.19927133]
[1763412053578,0.6467,2994.3,2993.5,1.19927133]
[1763412053784,0.4575,2994.2,2993.6,1.19927133]
[1763412053984,0.405504,2994.1,2993.6,1.19927133]
[1763412054186,0.002,2993.8,2993.6,1.19927133]
[1763412055619,0.002,2993.8,2993.5,2.10626397]
[1763412057295,0.002,2993.8,2993.6,1.19927133]
[1763412057521,0.4926,2993.6,2993.5,1.19927133]
[1763412057918,0.4926,2993.6,2993.4,1.19927133]
[1763412057919,0.9501,2993.6,2993.4,1.19927133]
[1763412058090,0.4926,2993.6,2993.5,1.19927133]
[1763412058285,0.407504,2993.8,2993.4,1.7929549]
[1763412058516,0.002,2993.8,2993.6,1.20143454]
[1763412058687,0.002,2993.8,2993.7,1.7929549]
[1763412058892,0.002,2993.8,2993.7,2.2706549]
[1763412059091,0.002,2993.8,2993.7,1.7929549]
[1763412060122,0.4946,2993.8,2993.7,1.7929549]
[1763412060326,0.002,2993.8,2993.7,1.80283485]
[1763412060533,0.3483,2993.8,2993.7,1.80283485]
[1763412060736,1.211304,2993.8,2993.7,1.80283485]
[1763412060918,0.405504,2993.7,2993.1,1.20246052]
[1763412061130,0.4926,2993.0,2992.7,1.20246052]
[1763412061305,0.4926,2993.0,2992.0,0.001]
[1763412061306,0.405504,2992.7,2992.4,1.80283485]
[1763412061505,11.16847713,2993.8,2992.0,2.39160653]
[1763412061506,0.405504,2993.5,2992.3,2.39060653]
[1763412061817,0.405504,2993.0,2992.8,1.20306559]
[1763412062026,0.405504,2993.0,2992.9,1.20306559]
[1763412062212,0.405504,2993.0,2992.8,1.20306559]
[1763412062408,0.863004,2993.0,2992.9,1.20306559]
[1763412062628,1.355604,2993.0,2992.9,1.20306559]
[1763412062837,2.42968797,2993.0,2992.7,1.20306559]
[1763412063040,0.405504,2992.7,2992.5,1.80459839]
[1763412063399,0.405504,2992.8,2992.5,1.80459839]
[1763412063595,0.405504,2992.8,2992.7,1.20348604]
[1763412063905,1.355604,2992.8,2992.7,1.20348604]
[1763412064430,0.898104,2992.8,2992.7,1.20348604]
[1763412064627,1.355604,2992.8,2992.7,1.20348604]
[1763412065357,9.38523569,2993.1,2992.0,0.001]
[1763412065358,0.049,2992.7,2992.0,0.001]
[1763412065564,1.31249664,2993.0,2991.3,1.80459839]
[1763412065565,0.405504,2992.0,2991.3,1.80459839]
[1763412065739,0.405504,2992.0,2990.9,2.39060653]
[1763412065740,0.405504,2991.7,2990.9,1.80459839]
[1763412065925,0.893504,2991.1,2990.8,0.001]
[1763412066325,0.405504,2991.0,2990.8,0.001]
[1763412066666,0.878604,2991.1,2989.6,1.80459839]
[1763412066667,0.405504,2990.8,2989.6,1.80459839]
[1763412066961,0.405504,2990.4,2989.7,0.18045984]
[1763412067170,0.405504,2990.2,2989.5,1.80459839]
[1763412067325,0.405504,2990.2,2989.3,1.80559839]
[1763412067529,0.405504,2989.6,2989.3,0.001]
[1763412068130,0.405504,2989.4,2989.3,0.001]
[1763412068571,0.878604,2989.4,2989.3,0.001]
[1763412069104,0.1855,2989.8,2989.3,0.001]
[1763412069232,0.42393337,2990.5,2989.3,0.4699]
[1763412069233,0.405504,2990.3,2989.3,0.4699]
[1763412069428,0.405504,2989.9,2989.3,0.001]
[1763412070027,0.405504,2990.3,2989.3,0.001]
[1763412070859,0.878604,2990.3,2989.3,0.001]
[1763412071294,0.878604,2990.3,2989.3,0.4699]
[1763412071512,0.405504,2990.1,2989.3,0.001]
[1763412072003,0.405504,2989.9,2989.3,0.001]
[1763412072422,0.78272817,2990.9,2989.3,0.001]
[1763412072423,9.85833569,2990.5,2989.3,0.001]
[1763412072704,1.27232123,2990.4,2989.3,0.001]
[1763412072907,0.405504,2990.0,2989.3,0.001]
[1763412073408,0.405504,2990.2,2989.3,0.03445264]
[1763412074002,0.405504,2990.2,2989.3,0.4699]
[1763412074213,0.4731,2990.7,2989.3,0.4699]
[1763412074707,0.405504,2990.4,2989.3,0.4699]
[1763412075006,0.405504,2990.2,2989.3,0.4699]
[1763412075696,0.60943337,2990.9,2989.3,0.4699]
[1763412075697,9.38523569,2991.4,2990.1,0.6721]
[1763412075896,9.38523569,2991.5,2990.2,0.4689]
[1763412076058,0.4731,2992.2,2990.2,0.50234257]
[1763412076257,1.00438357,2992.1,2990.2,0.4689]
[1763412077511,9.38523569,2991.9,2990.2,0.4689]
[1763412077707,0.4731,2992.0,2990.2,0.4689]
[1763412077708,0.405504,2991.4,2990.2,0.4689]
[1763412078307,0.1855,2991.8,2990.2,0.4689]
[1763412078308,9.38523569,2991.8,2990.2,0.4689]
[1763412078461,0.405504,2991.7,2990.2,0.4689]
[1763412080161,0.904204,2991.7,2990.2,0.4689]
[1763412080466,0.405504,2991.5,2990.2,0.4689]
[1763412080966,9.38523569,2991.8,2990.2,0.4689]
[1763412080967,0.405504,2991.3,2990.2,0.4689]
[1763412081577,0.405504,2991.7,2990.2,0.4689]
[1763412081790,0.97907397,2991.6,2990.2,0.4689]
[1763412082407,0.405504,2991.7,2990.2,0.4689]
[1763412082764,0.904204,2991.7,2990.2,0.4689]
[1763412083478,0.405504,2991.3,2990.2,0.4689]
[1763412084431,9.38523569,2991.4,2991.2,0.4518]
[1763412084581,0.1949,2991.9,2991.2,0.6354]
[1763412084910,10.07883569,2991.9,2991.0,0.1836]
[1763412085108,1.00788357,2991.8,2991.0,0.1836]
[1763412085307,0.405504,2991.7,2991.0,0.1836]
[1763412085519,9.58013569,2991.9,2991.0,0.1836]
[1763412085820,9.57073569,2992.3,2991.1,0.4732]
[1763412086124,0.1949,2992.8,2992.2,0.1836]
[1763412086278,0.5007,2993.0,2992.2,0.6354]
[1763412086279,0.1949,2992.9,2992.2,0.6354]
[1763412086702,0.1949,2992.9,2992.2,1.1086]
[1763412086914,0.405504,2992.8,2992.2,1.1086]
[1763412087221,0.1949,2992.9,2992.2,1.1086]
[1763412087403,0.405504,2992.8,2992.2,1.1086]
[1763412087716,0.002,2993.0,2992.3,0.4732]
[1763412088106,0.002,2993.0,2992.6,0.4518]
[1763412088306,0.002,2993.0,2992.3,0.4732]
[1763412088819,0.002,2993.0,2991.8,0.1836]
[1763412088820,0.4938,2992.4,2991.8,0.1836]
[1763412089026,0.410404,2992.3,2991.1,0.4732]
[1763412089207,0.405504,2992.3,2991.1,0.4732]
[1763412089581,0.407504,2992.7,2991.1,0.4732]
[1763412089922,0.002,2992.7,2991.3,1.80459839]
[1763412090106,0.002,2992.7,2991.5,1.80459839]
[1763412090305,0.002,2992.7,2991.6,0.18045984]
[1763412090616,0.002,2992.7,2991.6,0.65365984]
[1763412091008,0.002,2992.7,2992.6,0.6354]
[1763412091408,0.002,2992.7,2992.6,1.1086]
[1763412091605,0.002,2992.7,2992.4,0.1836]
[1763412092012,0.002,2992.7,2992.4,0.6568]
[1763412093788,0.002,2992.7,2992.4,0.1836]
[1763412094634,0.002,2992.7,2991.6,0.18045984]
[1763412094784,0.002,2992.7,2991.7,0.4732]
[1763412094991,0.002,2992.7,2991.6,0.18045984]
[1763412095234,0.5007,2992.7,2991.7,0.35488509]
[1763412095435,0.5007,2992.7,2991.6,0.18045984]
[1763412095641,0.5007,2992.7,2991.6,1.86572321]
[1763412095954,0.5007,2992.7,2991.7,0.4959]
[1763412096716,0.002,2992.7,2991.7,0.4959]
[1763412096925,0.002,2992.7,2991.7,1.68526337]
[1763412097247,0.5435,2991.8,2991.0,1.37296337]
[1763412097547,0.1822,2991.7,2990.6,1.18936337]
[1763412097742,0.647,2991.7,2990.5,1.18936337]
[1763412098044,0.647,2991.7,2990.7,0.89286696]
[1763412098206,0.647,2991.7,2990.8,0.89286696]
[1763412098405,0.870304,2991.7,2990.9,0.89286696]
[1763412098605,0.405504,2991.7,2990.9,0.89286696]
[1763412098851,0.405504,2991.7,2991.0,0.17998596]
[1763412099012,0.405504,2991.7,2991.1,0.1972]
[1763412099545,6.35,2992.6,2991.2,0.4959]
[1763412099849,0.870304,2992.5,2991.2,1.38876696]
[1763412100047,0.405504,2992.3,2991.3,1.14216292]
[1763412100231,0.405504,2992.3,2991.4,0.89286696]
[1763412100843,0.405504,2992.3,2991.3,1.38876696]
[1763412101148,0.405504,2992.3,2991.1,1.38656337]
[1763412101149,0.405504,2992.1,2991.1,1.09006696]
[1763412101352,0.405504,2992.1,2991.2,1.38876696]
[1763412101505,1.02555397,2992.4,2991.3,0.89286696]
[1763412101855,0.405504,2992.3,2991.5,0.89286696]
[1763412102046,9.85003569,2992.6,2991.4,0.90699264]
[1763412102047,9.38523569,2992.6,2991.6,0.89286696]
[1763412102205,0.002,2992.7,2991.9,0.89286696]
[1763412102409,0.002,2992.7,2992.1,0.89286696]
[1763412102612,0.002,2992.7,2992.2,0.6931]
[1763412102806,0.002,2992.7,2992.3,0.4959]
[1763412103250,0.002,2992.7,2992.2,1.09006696]
[1763412103431,0.002,2992.7,2992.1,0.89286696]
[1763412103817,0.405504,2992.6,2992.1,0.89286696]
[1763412104325,0.002,2992.7,2992.2,0.92628718]
[1763412104533,0.002,2992.7,2992.3,0.89286696]
[1763412104737,0.002,2992.7,2992.3,1.38876696]
[1763412105238,0.002,2992.7,2992.4,0.89286696]
[1763412106696,0.002,2992.7,2992.6,0.4522]
[1763412107026,0.002,2992.7,2992.6,2.11576292]
[1763412107221,0.002,2992.7,2992.6,1.22289596]
[1763412107454,0.002,2992.7,2992.6,3.93448699]
[1763412108251,0.002,2992.7,2992.6,2.70020004]
[1763412108557,0.002,2992.7,2992.6,0.90699264]
[1763412108759,0.002,2992.7,2992.6,1.80420376]
[1763412108940,0.002,2992.7,2992.6,1.35919264]
[1763412110593,0.002,2992.7,2992.6,1.85509264]
[1763412110753,0.002,2992.7,2992.6,4.01313004]
[1763412111285,0.002,2992.7,2992.6,2.21992264]
[1763412112292,0.002,2992.7,2992.6,4.61052917]
[1763412112590,0.002,2992.7,2992.6,2.21992264]
[1763412112995,0.002,2992.7,2992.6,4.61052917]
[1763412113194,0.002,2992.7,2992.6,1.72402264]
[1763412113377,0.002,2992.7,2992.6,1.35919264]
[1763412113970,0.002,2992.7,2992.6,1.85509264]
[1763412114680,0.002,2992.7,2992.6,4.24569917]
[1763412115261,0.002,2992.7,2992.6,1.85509264]
[1763412115958,0.002,2992.7,2992.6,4.24896386]
[1763412116157,0.002,2992.7,2992.6,2.27998903]
[1763412116392,0.002,2992.7,2992.6,1.85509264]
[1763412116793,0.002,2993.0,2992.8,3.533]
[1763412116955,0.002,2993.8,2992.9,7.88045081]
[1763412117160,0.002,2993.8,2993.2,0.6494]
[1763412117494,0.002,2993.8,2993.4,3.533]
[1763412117657,0.002,2993.8,2993.7,1.35919264]
[1763412118067,0.002,2993.8,2993.7,1.85509264]
[1763412118397,0.002,2993.8,2993.7,0.9481]
[1763412118814,0.002,2993.8,2993.7,1.79105598]
[1763412119102,0.002,2993.8,2993.7,1.19426095]
[1763412119301,0.4826,2993.8,2993.6,1.19426095]
[1763412119488,0.002,2993.8,2993.7,0.89574192]
[1763412119692,0.002,2993.8,2993.6,1.19426095]
[1763412119863,0.002,2993.8,2993.7,1.19426095]
[1763412120302,0.002,2993.8,2993.7,0.98150348]
[1763412120510,0.002,2993.8,2993.7,0.9481]
[1763412120711,4.02725781,2996.9,2993.7,0.9481]
[1763412120712,0.1804,2995.5,2993.7,0.9481]
[1763412120896,0.1804,2995.5,2995.0,0.89411538]
[1763412121100,0.4668,2995.6,2995.1,0.89411538]
[1763412121101,0.002,2995.6,2995.1,0.89411538]
[1763412121287,0.002,2995.6,2995.2,1.55639264]
[1763412121487,0.002,2995.6,2995.2,2.33745384]
[1763412121747,0.002,2995.6,2995.2,2.93353076]
[1763412121926,0.002,2995.6,2995.2,0.6494]
[1763412122076,0.002,2995.6,2995.3,0.90699264]
[1763412122280,0.002,2995.6,2995.5,1.18762057]
[1763412122476,0.002,2995.6,2995.4,0.69213234]
[1763412122477,0.002,2995.6,2995.4,2.37565291]
[1763412122690,0.002,2995.6,2995.5,0.89054058]
[1763412122889,0.002,2995.6,2995.4,2.37565291]
[1763412123088,0.002,2995.6,2995.5,0.88935765]
[1763412123518,0.405504,2995.5,2995.0,0.88935765]
[1763412123717,0.405504,2995.5,2994.2,0.88935765]
[1763412123718,0.405504,2995.3,2994.2,0.88935765]
[1763412124019,0.1804,2994.9,2994.1,1.08655765]
[1763412124176,0.1804,2994.9,2993.9,1.18762057]
[1763412124177,0.405504,2994.8,2993.7,0.88935765]
[1763412124378,0.405504,2994.8,2993.6,0.88935765]
[1763412124379,1.49023006,2994.8,2993.6,0.88935765]
[1763412124608,0.405504,2994.6,2993.6,0.88935765]
[1763412124928,0.4648,2994.7,2993.6,0.88935765]
[1763412125081,0.002,2995.3,2993.8,0.88935765]
[1763412125281,0.002,2995.3,2994.0,0.88935765]
[1763412125499,0.405504,2995.1,2994.2,0.88935765]
[1763412125699,0.405504,2995.1,2994.2,0.29839709]
[1763412125914,0.405504,2994.9,2994.2,0.29839709]
[1763412126139,0.405504,2994.9,2993.9,0.88935765]
[1763412126140,0.1997,2994.3,2993.9,0.88935765]
[1763412126443,0.002,2995.3,2993.9,0.4852]
[1763412126444,0.405504,2995.2,2993.9,0.4852]
[1763412126613,0.405504,2995.2,2993.9,0.88935765]
[1763412126940,0.405504,2995.0,2993.8,1.37455765]
[1763412127141,0.1997,2994.9,2993.9,1.11751268]
[1763412127544,0.002,2995.3,2994.0,1.37455765]
[1763412127843,0.4954,2995.3,2994.1,0.88935765]
[1763412128050,0.4954,2995.3,2994.1,1.06945765]
[1763412128207,0.4954,2995.3,2994.3,0.88935765]
[1763412128552,0.4954,2995.3,2994.4,0.88935765]
[1763412128553,0.405504,2995.2,2994.4,0.88935765]
[1763412128847,0.405504,2995.2,2994.2,0.88935765]
[1763412129139,0.405504,2995.2,2994.3,0.88935765]
[1763412129316,0.405504,2995.2,2994.4,0.17963503]
[1763412129705,0.4934,2995.2,2994.4,0.17963503]
[1763412130343,0.002,2995.3,2994.4,0.17963503]
[1763412130801,0.1997,2994.5,2994.2,1.79635029]
[1763412131009,0.1997,2994.5,2993.9,1.11751268]
[1763412131202,0.1997,2994.5,2994.0,0.88935765]
[1763412131416,0.4934,2994.8,2994.0,0.88935765]
[1763412131417,0.6931,2994.8,2994.0,0.88935765]
[1763412131616,0.1997,2994.8,2994.1,0.1801]
[1763412131845,0.1997,2994.8,2994.1,0.35838127]
[1763412132002,0.1997,2994.8,2994.1,1.24773892]
[1763412132205,0.1997,2994.8,2994.2,0.88935765]
[1763412132829,0.1997,2994.8,2994.1,0.88935765]
[1763412132830,0.405504,2994.7,2994.1,0.88935765]
[1763412133036,0.405504,2994.7,2994.2,0.1801]
[1763412133232,0.1997,2994.8,2994.2,1.06945765]
[1763412133432,0.1997,2994.9,2994.2,1.11506547]
[1763412133649,0.4934,2994.8,2994.1,0.88935765]
[1763412133948,0.4954,2995.3,2994.2,0.1801]
[1763412134107,0.002,2995.3,2994.4,0.88935765]
[1763412134312,0.002,2995.3,2994.5,0.88935765]
[1763412134534,0.4934,2995.2,2994.4,0.88935765]
[1763412134709,0.4934,2995.2,2994.5,0.88935765]
[1763412134913,0.002,2995.3,2994.5,0.88935765]
[1763412135137,0.002,2995.3,2994.6,0.88935765]
[1763412136059,0.002,2995.3,2994.8,0.88935765]
[1763412136270,0.002,2995.3,2995.2,0.1801]
[1763412136416,0.002,2995.3,2995.1,0.88935765]
[1763412136800,0.002,2995.3,2995.2,0.88935765]
[1763412137527,0.002,2995.3,2995.1,0.88935765]
[1763412137966,0.002,2995.3,2995.0,0.88935765]
[1763412138277,0.4851,2995.3,2994.7,0.88935765]
[1763412139326,0.002,2995.3,2994.8,0.88935765]
[1763412139553,0.002,2995.3,2995.2,0.88935765]
[1763412139761,0.002,2995.3,2995.1,0.88935765]
[1763412140061,0.002,2995.3,2995.1,1.59121839]
[1763412140267,0.002,2995.3,2995.2,1.18762057]
[1763412140653,0.002,2995.3,2995.1,1.39531839]
[1763412140853,0.002,2995.3,2995.1,1.18762057]
[1763412141183,0.002,2995.3,2995.2,0.8960523]
[1763412141504,0.002,2995.3,2995.1,1.38352057]
[1763412142090,0.002,2995.3,2994.9,1.78823076]
[1763412142091,0.002,2995.3,2995.2,0.89621949]
[1763412142277,0.002,2995.3,2994.9,0.89621949]
[1763412142592,0.002,2995.3,2994.8,0.90699264]
[1763412142593,0.4946,2995.0,2994.8,0.89682497]
[1763412142792,0.4946,2995.0,2994.1,0.001]
[1763412142793,0.2411,2994.9,2994.5,0.89682497]
[1763412142979,0.4901,2994.7,2994.5,0.89682497]
[1763412143355,0.1984,2994.9,2994.6,0.89682497]
[1763412143555,0.1984,2995.0,2994.6,0.89682497]
[1763412143990,0.6815,2995.0,2994.6,0.89682497]
[1763412144324,0.6815,2995.0,2994.7,0.89682497]
[1763412144594,0.4946,2994.8,2994.7,0.89682497]
[1763412144797,0.1984,2995.0,2994.7,0.89682497]
[1763412145295,0.1984,2995.0,2994.8,0.89682497]
[1763412145497,0.002,2995.3,2994.9,0.89682497]
[1763412145721,0.002,2995.3,2995.2,0.89682497]
[1763412145893,0.002,2995.3,2995.2,0.6777]
[1763412146094,0.002,2995.3,2995.2,1.166]
[1763412146998,0.002,2995.3,2995.2,3.96900033]
[1763412147198,0.002,2995.3,2995.2,1.10289264]
[1763412147613,0.002,2995.3,2995.2,1.45161267]
[1763412147787,0.002,2995.3,2995.2,0.90699264]
[1763412148607,0.002,2995.3,2995.2,1.87709264]
[1763412148918,0.002,2995.3,2995.2,4.26140033]
[1763412149322,0.002,2995.3,2995.2,3.77310033]
[1763412149484,0.002,2995.3,2995.2,1.87709264]
[1763412149687,0.002,2995.3,2995.2,2.0843919]
[1763412149922,0.002,2995.3,2995.2,1.5960919]
[1763412150127,0.2004,2995.9,2995.2,1.5960919]
[1763412150128,0.002,2995.9,2995.5,0.4818]
[1763412150417,0.002,2995.9,2995.8,0.4818]
[1763412150624,0.002,2995.9,2995.8,0.9701]
[1763412151135,0.002,2995.9,2995.8,1.45710101]
[1763412151431,0.002,2995.9,2995.8,3.78477359]
[1763412151637,0.002,2995.9,2995.8,4.26657359]
[1763412152020,0.002,2995.9,2995.8,2.36409365]
[1763412152226,0.002,2995.9,2995.8,4.2668339]
[1763412152593,0.002,2995.9,2995.8,1.38879264]
[1763412152804,0.002,2995.9,2995.8,3.7785339]
[1763412153006,0.002,2995.9,2995.8,0.90699264]
[1763412153333,0.002,2995.9,2995.8,1.87709264]
[1763412153640,0.002,2995.9,2995.8,2.30377603]
[1763412153804,0.002,2995.9,2995.8,1.33367603]
[1763412154827,0.002,2995.9,2995.8,1.81547603]
[1763412155495,0.4351,2996.6,2995.9,0.90699264]
[1763412155710,0.4351,2996.6,2996.4,1.19476667]
[1763412156123,0.4351,2996.6,2996.5,0.89604307]
[1763412156323,0.4351,2996.6,2996.4,0.89609479]
[1763412156324,0.8996,2996.6,2996.4,0.89609479]
[1763412156527,0.4645,2996.5,2996.4,0.89609479]
[1763412156952,0.405504,2996.4,2995.8,0.89609479]
[1763412157249,0.1803,2995.9,2995.7,0.89609479]
[1763412157454,0.4645,2995.8,2995.7,0.89609479]
[1763412157652,0.9319,2995.8,2995.6,0.89609479]
[1763412158147,0.1803,2995.9,2995.7,0.89609479]
[1763412158368,0.1803,2995.9,2995.8,0.89609479]
[1763412158540,0.1803,2995.9,2995.7,0.89609479]
[1763412159251,0.4674,2996.3,2995.8,0.89609479]
[1763412159659,0.002,2996.6,2996.1,0.89609479]
[1763412160023,0.4694,2996.6,2996.2,0.89609479]
[1763412160453,0.002,2996.6,2996.3,0.89609479]
[1763412160723,0.002,2996.6,2996.5,0.89609479]
[1763412161261,0.4665,2996.6,2996.5,0.89609479]
[1763412161619,0.9339,2996.6,2996.5,0.89609479]
[1763412162760,0.002,2996.6,2996.5,0.89609479]
[1763412163318,0.4665,2996.6,2996.5,0.89609479]
[1763412164381,0.9339,2996.6,2996.5,0.89609479]
[1763412164725,0.9339,2996.6,2996.5,0.20908615]
[1763412164726,0.002,2996.6,2996.5,0.20908615]
[1763412165635,0.4665,2996.6,2996.4,1.79215001]
[1763412165935,0.4694,2996.6,2996.5,1.1954981]
[1763412166136,0.4694,2996.6,2996.4,1.1954981]
[1763412166358,0.002,2996.6,2996.5,1.1954981]
[1763412167263,0.002,2996.6,2996.5,0.69254907]
[1763412167430,0.002,2996.6,2996.5,1.15624907]
[1763412169262,0.002,2996.6,2996.5,4.45183795]
[1763412169657,0.002,2996.6,2996.5,2.06324171]
[1763412169861,0.002,2997.5,2996.8,0.4823]
[1763412170062,0.002,2997.5,2997.1,0.6702]
[1763412170261,0.002,2997.5,2997.1,1.1339]
[1763412171038,0.002,2997.5,2997.1,3.51774016]
[1763412171236,0.002,2997.5,2997.1,2.04089264]
[1763412171442,0.002,2997.5,2997.1,4.4247328]
[1763412171644,0.002,2997.5,2997.1,4.91141412]
[1763412172167,0.002,2997.5,2997.1,2.52757396]
[1763412173762,0.002,2997.5,2997.1,5.31691812]
[1763412173957,0.002,2998.1,2997.5,3.938504]
[1763412174133,0.002,2998.1,2997.8,0.90699264]
[1763412174327,0.002,2998.1,2998.0,0.887804]
[1763412174739,0.002,2998.1,2998.0,1.351504]
[1763412174935,0.002,2998.4,2998.1,1.31249664]
[1763412175137,0.6477,3000.4,2998.4,0.405504]
[1763412175462,0.6477,3000.4,2998.9,1.79479664]
[1763412175638,0.6477,3000.4,2998.9,2.4379763]
[1763412176037,0.6477,3000.4,2998.9,4.80998544]
[1763412176638,0.1803,2999.9,2998.9,2.0324723]
[1763412176838,0.1803,2999.9,2998.9,2.68721269]
[1763412176839,0.4674,2999.4,2998.9,2.68721269]
[1763412177033,0.9339,2999.0,2998.8,1.18711036]
[1763412177273,0.9339,2999.0,2997.9,1.78022005]
[1763412177274,0.6448,2998.9,2997.9,1.78022005]
[1763412177576,0.4605,2998.0,2997.3,1.78022005]
[1763412177776,0.0665,2997.8,2997.3,0.24548014]
[1763412177999,0.4674,2998.3,2997.3,0.24548014]
[1763412179339,0.4674,2998.3,2996.9,0.90799264]
[1763412179340,0.4674,2998.3,2996.9,0.001]
[1763412179655,0.4674,2998.3,2996.9,2.24492005]
[1763412179975,0.4674,2998.3,2996.9,0.001]
[1763412180345,0.4674,2998.3,2996.9,0.4647]